bitfinex-derivatives/quotes_BTCF0:USTF0_20241203
["timestamp","ask_amount","ask_price","bid_price","bid_amount"]
[1733222562860,0.057375,95450.0,95449.0,0.0026]
[1733222563359,0.054375,95450.0,95449.0,0.0026]
[1733222563561,0.055375,95450.0,95449.0,0.0026]
[1733222563762,0.057375,95450.0,95449.0,0.0026]
[1733222564365,0.055375,95450.0,95449.0,0.0026]
[1733222564567,0.057375,95450.0,95449.0,0.0026]
[1733222566463,0.054375,95450.0,95449.0,0.0026]
[1733222566664,0.055375,95450.0,95449.0,0.0026]
[1733222566866,0.057375,95450.0,95449.0,0.0026]
[1733222581081,0.057375,95450.0,95449.0,0.054976]
[1733222583283,0.057375,95450.0,95449.0,0.0026]
[1733222587086,0.057375,95450.0,95449.0,0.054976]
[1733222588588,0.005,95450.0,95449.0,0.054976]
[1733222590883,0.003,95450.0,95449.0,0.055976]
[1733222591388,0.052374,95452.0,95451.0,0.052375]
[1733222591586,0.3608,95460.0,95451.0,0.413175]
[1733222591781,0.052372,95457.0,95456.0,0.052371]
[1733222592980,0.41317,95460.0,95459.0,0.05237]
[1733222594391,0.41517,95460.0,95459.0,0.05237]
[1733222594779,0.41717,95460.0,95459.0,0.05237]
[1733222595594,0.41617,95460.0,95459.0,0.05237]
[1733222595885,0.41417,95460.0,95459.0,0.05237]
[1733222596281,0.41517,95460.0,95459.0,0.05237]
[1733222596683,0.41417,95460.0,95459.0,0.05237]
[1733222596883,0.41517,95460.0,95459.0,0.05237]
[1733222599282,0.41417,95460.0,95459.0,0.05237]
[1733222599484,0.41517,95460.0,95459.0,0.05237]
[1733222600088,0.05337,95460.0,95459.0,0.05237]
[1733222600391,0.05437,95460.0,95459.0,0.05237]
[1733222601389,0.05337,95460.0,95459.0,0.05237]
[1733222602188,0.05437,95460.0,95459.0,0.05237]
[1733222602398,0.05337,95460.0,95459.0,0.05237]
[1733222602592,0.05237,95460.0,95459.0,0.05237]
[1733222602793,0.05237,95460.0,95459.0,0.05337]
[1733222604192,0.05237,95460.0,95459.0,0.05237]
[1733222604389,0.05237,95460.0,95459.0,0.05337]
[1733222604893,0.05237,95460.0,95459.0,0.05237]
[1733222607698,0.05337,95460.0,95459.0,0.05237]
[1733222608085,0.05437,95460.0,95459.0,0.05237]
[1733222608496,0.05337,95460.0,95459.0,0.05237]
[1733222608700,0.05537,95460.0,95459.0,0.05237]
[1733222609793,0.05437,95460.0,95459.0,0.05237]
[1733222611298,0.05337,95460.0,95459.0,0.05237]
[1733222611505,0.05537,95460.0,95459.0,0.05237]
[1733222612000,0.05337,95460.0,95459.0,0.05237]
[1733222613108,0.052367,95466.0,95459.0,0.05237]
[1733222613401,0.052367,95466.0,95465.0,0.052367]
[1733222614796,0.054367,95466.0,95465.0,0.08169724]
[1733222614997,0.057367,95466.0,95465.0,0.08169724]
[1733222621909,0.054367,95466.0,95465.0,0.08169724]
[1733222622715,0.052367,95466.0,95465.0,0.08169724]
[1733222623516,0.053367,95466.0,95465.0,0.08169724]
[1733222624311,0.052367,95466.0,95465.0,0.08169724]
[1733222624518,0.054367,95466.0,95465.0,0.08169724]
[1733222624716,0.055367,95466.0,95465.0,0.08169724]
[1733222625311,0.057367,95466.0,95465.0,0.08169724]
[1733222626117,0.054367,95466.0,95465.0,0.08169724]
[1733222626310,0.057367,95466.0,95465.0,0.08169724]
[1733222626913,0.055367,95466.0,95465.0,0.08169724]
[1733222627114,0.057367,95466.0,95465.0,0.08169724]
[1733222627617,0.054367,95466.0,95465.0,0.08169724]
[1733222627818,0.056367,95466.0,95465.0,0.08169724]
[1733222628210,0.057367,95466.0,95465.0,0.08169724]
[1733222634420,0.056367,95466.0,95465.0,0.08169724]
[1733222636119,0.056367,95466.0,95465.0,0.02933024]
[1733222636314,0.052369,95462.0,95461.0,0.12856]
[1733222636923,0.052369,95462.0,95461.0,0.15836813]
[1733222638021,0.053369,95462.0,95461.0,0.15836813]
[1733222638615,0.054369,95462.0,95461.0,0.15836813]
[1733222639319,0.053369,95462.0,95461.0,0.15836813]
[1733222639715,0.052369,95462.0,95461.0,0.15836813]
[1733222640618,0.052369,95462.0,95461.0,0.21073713]
[1733222640823,0.053369,95462.0,95461.0,0.21073713]
[1733222641618,0.054369,95462.0,95461.0,0.21073713]
[1733222641923,0.053369,95462.0,95461.0,0.21073713]
[1733222642223,0.054369,95462.0,95461.0,0.21073713]
[1733222642615,0.053369,95462.0,95461.0,0.21073713]
[1733222643126,0.052369,95462.0,95461.0,0.21073713]
[1733222647124,0.3608,95471.0,95461.0,0.21073713]
[1733222647330,0.0026,95475.0,95467.0,0.3608]
[1733222647629,0.052358,95481.0,95480.0,0.052358]
[1733222647831,0.052358,95481.0,95480.0,0.178318]
[1733222649229,0.0026,95493.0,95480.0,0.178318]
[1733222649230,0.052353,95491.0,95480.0,0.178318]
[1733222649426,0.052353,95491.0,95490.0,0.052353]
[1733222649817,0.0026,95498.0,95497.0,0.052349]
[1733222650033,0.152348,95500.0,95499.0,0.052348]
[1733222651528,0.158348,95500.0,95499.0,0.053348]
[1733222651730,0.167348,95500.0,95499.0,0.054348]
[1733222652432,0.115,95500.0,95499.0,0.054348]
[1733222653128,0.115,95500.0,95499.0,0.052348]
[1733222653129,0.1,95500.0,95499.0,0.052348]
[1733222653331,0.1,95500.0,95499.0,0.053348]
[1733222653332,0.109,95500.0,95499.0,0.053348]
[1733222653530,0.115,95500.0,95499.0,0.054348]
[1733222653731,0.0026,95510.0,95509.0,0.052343]
[1733222653934,0.03,95515.0,95514.0,0.05234]
[1733222654930,0.03,95515.0,95514.0,0.05399119]
[1733222656435,0.03,95515.0,95514.0,0.08340504]
[1733222656732,0.047,95515.0,95514.0,0.08540504]
[1733222657227,0.039,95515.0,95514.0,0.08540504]
[1733222660638,0.0026,95526.0,95525.0,0.052334]
[1733222660936,0.0319,95535.0,95534.0,0.052329]
[1733222662036,0.0319,95535.0,95534.0,0.05398019]
[1733222663336,0.0399,95535.0,95534.0,0.05498019]
[1733222663637,0.0399,95535.0,95534.0,0.00365119]
[1733222663638,0.0419,95535.0,95534.0,0.00365119]
[1733222664735,0.094228,95535.0,95534.0,0.00365119]
[1733222666233,0.094228,95535.0,95534.0,0.00265119]
[1733222666234,0.092228,95535.0,95534.0,0.00265119]
[1733222666430,0.094228,95535.0,95534.0,0.00265119]
[1733222667140,0.092228,95535.0,95534.0,0.00265119]
[1733222668631,0.453028,95535.0,95534.0,0.00265119]
[1733222669044,0.455028,95535.0,95534.0,0.00265119]
[1733222670846,0.454028,95535.0,95534.0,0.00265119]
[1733222672250,0.452028,95535.0,95534.0,0.00265119]
[1733222672548,0.454028,95535.0,95534.0,0.00265119]
[1733222673749,0.453028,95535.0,95534.0,0.00265119]
[1733222674251,0.447028,95535.0,95534.0,0.00165119]
[1733222676550,0.447028,95535.0,95534.0,0.00265119]
[1733222676551,0.454028,95535.0,95534.0,0.00265119]
[1733222676749,0.452028,95535.0,95534.0,0.00265119]
[1733222677053,0.454028,95535.0,95534.0,0.00265119]
[1733222678548,0.452028,95535.0,95534.0,0.00265119]
[1733222678743,0.454028,95535.0,95534.0,0.00265119]
[1733222680552,0.453028,95535.0,95534.0,0.00165119]
[1733222681145,0.454028,95535.0,95534.0,0.00265119]
[1733222682648,0.447028,95535.0,95534.0,0.00165119]
[1733222682953,0.447028,95535.0,95534.0,0.00265119]
[1733222682954,0.452028,95535.0,95534.0,0.00265119]
[1733222683250,0.452028,95535.0,95534.0,0.00165119]
[1733222683552,0.452028,95535.0,95534.0,0.00265119]
[1733222683741,0.450028,95535.0,95534.0,0.00265119]
[1733222683942,0.452028,95535.0,95534.0,0.00265119]
[1733222684355,0.452028,95535.0,95534.0,0.00165119]
[1733222684652,0.091228,95535.0,95534.0,0.00265119]
[1733222684852,0.452028,95535.0,95534.0,0.00265119]
[1733222686650,0.3678,95535.0,95534.0,0.05498019]
[1733222686856,0.0105,95550.0,95545.0,0.052323]
[1733222687047,0.3608,95556.0,95545.0,0.12576]
[1733222687048,0.05232,95551.0,95545.0,0.12576]
[1733222687247,0.05232,95551.0,95550.0,0.05232]
[1733222687847,0.05232,95551.0,95550.0,0.05397119]
[1733222689759,0.05332,95551.0,95550.0,0.05497119]
[1733222692154,0.001,95551.0,95550.0,0.08587119]
[1733222692455,0.001,95551.0,95550.0,0.11877119]
[1733222692664,0.001,95551.0,95550.0,0.24453119]
[1733222693251,0.05332,95551.0,95550.0,0.24453119]
[1733222694348,0.05332,95551.0,95550.0,0.27513119]
[1733222695357,0.001,95551.0,95550.0,0.27513119]
[1733222696370,0.001,95551.0,95550.0,0.63593119]
[1733222698854,0.001,95551.0,95550.0,0.27513119]
[1733222701858,0.001,95551.0,95550.0,0.63593119]
[1733222704665,0.001,95551.0,95550.0,0.63893119]
[1733222705367,0.052317,95558.0,95557.0,0.052317]
[1733222705676,0.052318,95555.0,95554.0,0.0026]
[1733222705968,0.052318,95555.0,95554.0,0.18228919]
[1733222706756,0.052318,95555.0,95554.0,0.18328919]
[1733222708361,0.052318,95555.0,95554.0,0.18228919]
[1733222709665,0.052318,95555.0,95554.0,0.18328919]
[1733222711166,0.052318,95555.0,95554.0,0.05756919]
[1733222711365,0.052318,95555.0,95554.0,0.18324919]
[1733222712677,0.053318,95555.0,95554.0,0.18224919]
[1733222713074,0.052318,95555.0,95554.0,0.18224919]
[1733222713273,0.052318,95555.0,95554.0,0.18324919]
[1733222714665,0.052318,95555.0,95554.0,0.18424919]
[1733222714868,0.3608,95556.0,95555.0,0.052318]
[1733222715164,0.413113,95564.0,95563.0,0.052313]
[1733222715973,0.413113,95564.0,95563.0,0.05396419]
[1733222716669,0.413113,95564.0,95563.0,0.00165119]
[1733222716873,0.414113,95564.0,95563.0,0.00165119]
[1733222717567,0.344113,95564.0,95563.0,0.00165119]
[1733222718477,0.396426,95564.0,95563.0,0.05396419]
[1733222718969,0.396426,95564.0,95563.0,0.00165119]
[1733222719773,0.395426,95564.0,95563.0,0.00165119]
[1733222719968,0.396426,95564.0,95563.0,0.00165119]
[1733222721770,0.396426,95564.0,95563.0,0.00116365]
[1733222722675,0.42636662,95564.0,95563.0,0.00116365]
[1733222722875,0.42636662,95564.0,95563.0,0.00216365]
[1733222723876,0.396426,95564.0,95563.0,0.00216365]
[1733222724968,0.395426,95564.0,95563.0,0.00116365]
[1733222725173,0.396426,95564.0,95563.0,0.00216365]
[1733222725676,0.396426,95564.0,95563.0,0.00116365]
[1733222727974,0.396426,95564.0,95563.0,0.00216365]
[1733222728477,0.396426,95564.0,95563.0,0.00116365]
[1733222729276,0.522106,95564.0,95563.0,0.00116365]
[1733222732185,0.522106,95564.0,95552.0,0.0105]
[1733222732186,0.052319,95553.0,95552.0,0.0105]
[1733222732488,0.052325,95541.0,95540.0,0.0105]
[1733222732671,0.3608,95545.0,95534.0,0.00011731]
[1733222732872,0.3608,95545.0,95534.0,0.05244631]
[1733222733078,0.052327,95538.0,95536.0,0.052328]
[1733222733376,0.052327,95537.0,95536.0,0.052328]
[1733222734182,0.3608,95537.0,95536.0,0.052328]
[1733222734369,0.3608,95537.0,95534.0,0.02984183]
[1733222734875,0.3608,95537.0,95536.0,0.006]
[1733222735582,0.413127,95537.0,95536.0,0.004]
[1733222735888,0.052328,95536.0,95534.0,0.08617083]
[1733222736382,0.052328,95536.0,95534.0,0.08417083]
[1733222736786,0.052329,95535.0,95534.0,0.08417083]
[1733222737683,0.052329,95535.0,95534.0,0.08317083]
[1733222738178,0.052329,95535.0,95534.0,0.08217083]
[1733222738377,0.052329,95535.0,95534.0,0.03084183]
[1733222738977,0.052329,95535.0,95534.0,0.03284183]
[1733222746987,0.052329,95535.0,95534.0,0.00311731]
[1733222747284,0.052329,95535.0,95534.0,0.00211731]
[1733222747481,0.052329,95535.0,95534.0,0.00411731]
[1733222747881,0.052329,95535.0,95534.0,0.00211731]
[1733222748083,0.052329,95535.0,95534.0,0.00311731]
[1733222749682,0.08216118,95535.0,95534.0,0.00311731]
[1733222760296,0.20784118,95535.0,95534.0,0.00311731]
[1733222760501,0.178009,95535.0,95534.0,0.00311731]
[1733222770519,0.178009,95535.0,95534.0,0.00011731]
[1733222780914,0.052329,95535.0,95534.0,0.00011731]
[1733222781215,0.178009,95535.0,95534.0,0.00011731]
[1733222789116,0.052332,95528.0,95527.0,0.0026]
[1733222789419,0.052336,95522.0,95521.0,0.0026]
[1733222789618,0.413132,95528.0,95515.0,0.06436984]
[1733222789619,0.052339,95516.0,95515.0,0.06436984]
[1733222789809,0.052339,95516.0,95515.0,0.06176984]
[1733222790004,0.05241781,95516.0,95515.0,0.06176984]
[1733222791023,0.05241781,95516.0,95515.0,0.06476984]
[1733222791512,0.05241781,95516.0,95515.0,0.11710984]
[1733222791513,7.881e-05,95516.0,95515.0,0.11710984]
[1733222791915,7.881e-05,95516.0,95515.0,0.11910984]
[1733222792823,7.881e-05,95516.0,95515.0,0.24478984]
[1733222793619,0.0105,95519.0,95515.0,0.19244984]
[1733222794506,0.0105,95519.0,95518.0,0.052338]
[1733222796316,0.0105,95519.0,95518.0,0.053338]
[1733222797115,0.0105,95519.0,95518.0,0.057338]
[1733222797917,0.0105,95519.0,95518.0,0.056338]
[1733222798117,0.0105,95519.0,95518.0,0.054338]
[1733222798426,0.0105,95519.0,95518.0,0.057338]
[1733222798813,0.0105,95519.0,95518.0,0.056338]
[1733222799815,0.0105,95519.0,95518.0,0.053338]
[1733222800124,0.0105,95519.0,95518.0,0.056338]
[1733222800615,0.0105,95519.0,95518.0,0.054338]
[1733222801220,0.0105,95519.0,95518.0,0.053338]
[1733222802823,0.0105,95519.0,95518.0,0.056338]
[1733222803928,0.0105,95519.0,95518.0,0.055338]
[1733222804526,0.0105,95519.0,95518.0,0.054338]
[1733222805020,0.0105,95519.0,95518.0,0.053338]
[1733222805328,0.0105,95519.0,95518.0,0.054338]
[1733222805919,0.0105,95519.0,95518.0,0.053338]
[1733222813626,0.0105,95519.0,95518.0,0.178978]
[1733222813627,0.062837,95519.0,95518.0,0.178978]
[1733222814429,0.062837,95519.0,95518.0,0.179978]
[1733222815033,0.062837,95519.0,95518.0,0.054338]
[1733222815640,0.062837,95519.0,95518.0,0.055338]
[1733222820336,0.092937,95519.0,95518.0,0.055338]
[1733222820639,0.092937,95519.0,95518.0,0.003]
[1733222821138,0.092937,95519.0,95518.0,0.055338]
[1733222822143,0.092937,95519.0,95518.0,0.054338]
[1733222822349,0.092937,95519.0,95518.0,0.055338]
[1733222823143,0.092937,95519.0,95518.0,0.003]
[1733222826429,0.092937,95519.0,95518.0,0.001]
[1733222827040,0.092937,95519.0,95518.0,0.053338]
[1733222828639,0.062837,95519.0,95518.0,0.053338]
[1733222839349,0.062837,95519.0,95518.0,0.001]
[1733222840052,0.062837,95519.0,95518.0,0.053338]
[1733222840849,0.423637,95519.0,95518.0,0.001]
[1733222841448,0.45297162,95519.0,95518.0,0.001]
[1733222842851,0.052342,95510.0,95509.0,0.0026]
[1733222843049,0.052343,95508.0,95507.0,0.03000092]
[1733222843242,0.052345,95505.0,95504.0,0.1256]
[1733222843442,0.44247162,95519.0,95507.0,0.052344]
[1733222843443,0.0105,95508.0,95507.0,0.052344]
[1733222843649,0.0105,95508.0,95504.0,0.15442164]
[1733222843650,0.052342,95511.0,95504.0,0.15702164]
[1733222843839,0.052342,95511.0,95508.0,0.413143]
[1733222843840,0.0105,95509.0,95508.0,0.413143]
[1733222844852,0.062843,95509.0,95508.0,0.413143]
[1733222845644,0.062843,95509.0,95508.0,0.419143]
[1733222846653,0.062843,95509.0,95508.0,0.422143]
[1733222846846,0.0105,95509.0,95508.0,0.422143]
[1733222850947,0.0105,95509.0,95508.0,0.547743]
[1733222853851,0.0105,95509.0,95508.0,0.422143]
[1733222854052,0.0105,95509.0,95508.0,0.547743]
[1733222862362,0.0105,95509.0,95508.0,0.422143]
[1733222862363,0.062843,95509.0,95508.0,0.422143]
[1733222862562,0.062843,95509.0,95508.0,0.547703]
[1733222862762,0.093443,95509.0,95508.0,0.547703]
[1733222864072,0.093443,95509.0,95508.0,0.186903]
[1733222864365,0.093443,95509.0,95508.0,0.009]
[1733222870975,0.454243,95509.0,95508.0,0.009]
[1733222871776,0.052346,95503.0,95502.0,0.15450931]
[1733222872786,0.052346,95503.0,95502.0,0.16350931]
[1733222872984,0.052346,95503.0,95502.0,0.16750931]
[1733222874786,0.052346,95503.0,95502.0,0.013]
[1733222880787,0.052346,95503.0,95502.0,0.065347]
[1733222891200,0.052345,95505.0,95504.0,0.052343]
[1733222891593,0.40338,95509.0,95502.0,0.013]
[1733222891792,0.454244,95509.0,95508.0,0.052343]
[1733222892802,0.423644,95509.0,95508.0,0.052343]
[1733222894198,0.423644,95509.0,95508.0,0.057343]
[1733222894704,0.423644,95509.0,95508.0,0.060343]
[1733222896190,0.3713,95509.0,95508.0,0.060343]
[1733222896402,0.0105,95509.0,95508.0,0.421143]
[1733222899509,0.062843,95509.0,95508.0,0.421143]
[1733222899695,0.062843,95509.0,95508.0,0.008]
[1733222900093,0.094443,95509.0,95508.0,0.008]
[1733222900306,0.156043,95509.0,95508.0,0.008]
[1733222903306,0.516843,95509.0,95508.0,0.008]
[1733222919415,0.516843,95509.0,95499.0,0.0026]
[1733222919416,0.052348,95500.0,95499.0,0.0026]
[1733222919611,0.052349,95498.0,95497.0,0.00011523]
[1733222920609,0.047349,95498.0,95497.0,0.00011523]
[1733222920815,0.047349,95498.0,95497.0,0.00811523]
[1733222921616,0.047349,95498.0,95497.0,0.01311523]
[1733222923217,0.07747508,95498.0,95497.0,0.01311523]
[1733222925309,0.07747508,95498.0,95497.0,2.3e-07]
[1733222925520,0.07847508,95498.0,95497.0,2.3e-07]
[1733222926520,0.07859637,95498.0,95497.0,2.3e-07]
[1733222927124,0.07859637,95498.0,95497.0,0.001]
[1733222927508,0.07759637,95498.0,95497.0,0.001]
[1733222927713,0.07759637,95498.0,95497.0,0.003]
[1733222932720,0.052352,95493.0,95492.0,0.0026]
[1733222932917,0.052355,95486.0,95485.0,0.0026]
[1733222933226,0.052359,95480.0,95479.0,0.0026]
[1733222933414,0.052355,95486.0,95478.0,0.0314]
[1733222933415,0.052359,95479.0,95478.0,0.0314]
[1733222933612,0.413159,95479.0,95478.0,0.0314]
[1733222934916,0.407159,95479.0,95478.0,0.0314]
[1733222935618,0.408159,95479.0,95478.0,0.0314]
[1733222936014,0.409159,95479.0,95478.0,0.0374]
[1733222936720,0.408159,95479.0,95478.0,0.0374]
[1733222936917,0.407159,95479.0,95478.0,0.0334]
[1733222951736,0.407159,95479.0,95478.0,0.002]
[1733222968042,0.500959,95479.0,95478.0,0.002]
[1733222993652,0.500959,95479.0,95474.0,0.0026]
[1733222993853,0.052361,95475.0,95469.0,0.0026]
[1733222994053,0.3608,95470.0,95469.0,0.0026]
[1733222994356,0.052366,95467.0,95466.0,0.0316]
[1733222994954,0.3608,95470.0,95462.0,0.0026]
[1733222995157,0.052366,95466.0,95462.0,0.0026]
[1733222996460,0.052366,95466.0,95465.0,0.00208298]
[1733222996963,0.052366,95466.0,95465.0,8.298e-05]
[1733222997255,0.052366,95466.0,95465.0,0.00208298]
[1733222997655,0.0834701,95466.0,95465.0,0.00208298]
[1733222999860,0.2089901,95466.0,95465.0,0.00208298]
[1733223002962,0.20909643,95466.0,95465.0,0.00208298]
[1733223003758,0.20909643,95466.0,95462.0,0.0026]
[1733223003759,0.05237,95460.0,95459.0,0.0105]
[1733223003967,0.05237,95460.0,95441.0,0.00157168]
[1733223003968,0.052373,95454.0,95453.0,0.0105]
[1733223004163,0.052376,95448.0,95445.0,0.02955029]
[1733223004356,0.413176,95448.0,95445.0,0.02955029]
[1733223005555,0.410176,95448.0,95445.0,0.02955029]
[1733223006353,0.410176,95448.0,95447.0,0.0398]
[1733223006354,0.411176,95448.0,95447.0,0.0398]
[1733223006564,0.412176,95448.0,95447.0,0.0398]
[1733223012460,0.412176,95448.0,95447.0,0.007]
[1733223015971,0.411176,95448.0,95441.0,0.00157168]
[1733223016168,0.052382,95438.0,95435.0,0.0052]
[1733223016367,0.052387,95428.0,95427.0,0.02917652]
[1733223016567,0.413187,95428.0,95427.0,0.02917652]
[1733223016768,0.413187,95428.0,95427.0,9.259e-05]
[1733223017169,0.41326591,95428.0,95427.0,9.259e-05]
[1733223017578,0.53874591,95428.0,95427.0,5.9e-07]
[1733223017769,0.53974591,95428.0,95427.0,5.9e-07]
[1733223018176,0.5190575,95428.0,95427.0,5.9e-07]
[1733223018477,0.052399,95407.0,95406.0,0.0052]
[1733223018680,0.052399,95407.0,95400.0,0.1]
[1733223018681,0.052402,95401.0,95400.0,0.1]
[1733223019571,0.413202,95401.0,95400.0,0.1]
[1733223020076,0.413202,95401.0,95400.0,0.06289579]
[1733223020580,0.57084689,95401.0,95400.0,0.06289579]
[1733223020771,0.052405,95395.0,95394.0,0.0026]
[1733223020968,0.05241,95387.0,95386.0,0.0026]
[1733223021171,0.05241,95387.0,95375.0,0.00013163]
[1733223021172,0.052416,95376.0,95375.0,0.00273163]
[1733223021475,0.413216,95376.0,95375.0,0.00013163]
[1733223022181,0.413216,95376.0,95375.0,6.3e-07]
[1733223022182,0.67143049,95376.0,95375.0,6.3e-07]
[1733223022372,0.052422,95365.0,95344.0,0.00157323]
[1733223022571,0.052436,95339.0,95338.0,0.0052]
[1733223022771,0.052436,95339.0,95331.0,0.0428]
[1733223022772,0.49809097,95342.0,95331.0,0.0323]
[1733223022971,0.41324,95333.0,95331.0,0.0323]
[1733223023173,0.41324,95333.0,95320.0,0.0632]
[1733223023174,0.3608,95333.0,95321.0,0.02900034]
[1733223023379,0.052443,95326.0,95321.0,0.02900034]
[1733223023876,0.052443,95326.0,95317.0,0.15782]
[1733223024079,0.0095,95325.0,95317.0,0.15782]
[1733223024281,0.052447,95319.0,95317.0,0.0323]
[1733223024490,0.052447,95319.0,95310.0,9.87e-05]
[1733223024491,0.052448,95317.0,95310.0,9.87e-05]
[1733223024673,0.052451,95311.0,95310.0,9.87e-05]
[1733223024872,0.050451,95311.0,95310.0,9.87e-05]
[1733223025073,0.16950305,95311.0,95310.0,9.87e-05]
[1733223025276,0.32642789,95311.0,95310.0,9.87e-05]
[1733223025471,0.43134812,95311.0,95310.0,9.87e-05]
[1733223025871,0.55690812,95311.0,95310.0,9.87e-05]
[1733223026380,0.55690812,95311.0,95300.0,0.1]
[1733223026381,0.052457,95301.0,95300.0,0.1]
[1733223026586,0.79778926,95301.0,95300.0,0.1]
[1733223026775,0.79778926,95301.0,95280.0,0.0105]
[1733223026776,0.052468,95281.0,95280.0,0.0105]
[1733223027083,0.052468,95281.0,95265.0,0.1256]
[1733223027084,0.05247,95277.0,95265.0,0.1256]
[1733223027274,0.05247,95277.0,95263.0,0.538877]
[1733223027275,0.00011376,95276.0,95263.0,0.538877]
[1733223027475,0.05247,95277.0,95263.0,0.538877]
[1733223028286,0.3608,95281.0,95265.0,0.02099714]
[1733223028580,0.05247,95277.0,95265.0,0.02099714]
[1733223028781,8.916e-05,95280.0,95267.0,0.12679097]
[1733223028990,0.001,95277.0,95275.0,0.413271]
[1733223029285,8.916e-05,95280.0,95275.0,0.3608]
[1733223029679,8.916e-05,95280.0,95266.0,0.00157456]
[1733223029680,0.052474,95270.0,95266.0,0.00157456]
[1733223029880,0.3608,95269.0,95260.0,0.00010663]
[1733223030083,0.052479,95261.0,95260.0,0.00010663]
[1733223030280,0.178119,95261.0,95260.0,0.00010663]
[1733223032188,0.179119,95261.0,95260.0,0.00010663]
[1733223032382,0.180119,95261.0,95260.0,0.00010663]
[1733223032583,0.054479,95261.0,95260.0,0.00010663]
[1733223032785,0.180159,95261.0,95260.0,0.00010663]
[1733223036594,0.180159,95261.0,95250.0,0.75]
[1733223036595,0.052485,95251.0,95250.0,0.69135656]
[1733223036791,0.899765,95251.0,95250.0,0.69135656]
[1733223036991,1.05618907,95251.0,95250.0,0.69135656]
[1733223037386,1.08554911,95251.0,95250.0,0.68050068]
[1733223038594,1.19353543,95251.0,95250.0,0.68050068]
[1733223038793,1.19753543,95251.0,95250.0,0.68050068]
[1733223039691,1.07185543,95251.0,95250.0,0.68050068]
[1733223039895,1.19757543,95251.0,95250.0,0.68050068]
[1733223040395,1.04261881,95251.0,95250.0,0.68050068]
[1733223040584,1.16833881,95251.0,95250.0,0.68050068]
[1733223041992,1.06335249,95251.0,95250.0,0.68050068]
[1733223042298,0.93763249,95251.0,95250.0,0.68050068]
[1733223042487,1.06807249,95251.0,95250.0,0.68050068]
[1733223044799,1.58647559,95251.0,95250.0,0.13003652]
[1733223045096,1.58647559,95251.0,95250.0,5.2e-07]
[1733223046497,1.58347559,95251.0,95250.0,5.2e-07]
[1733223046698,1.58347559,95251.0,95244.0,0.0105]
[1733223046699,0.052488,95245.0,95244.0,0.0105]
[1733223046902,0.052492,95237.0,95236.0,0.0105]
[1733223047093,0.052496,95230.0,95229.0,0.0105]
[1733223047295,0.3608,95237.0,95222.0,0.0105]
[1733223047296,0.0525,95223.0,95222.0,0.0105]
[1733223047601,0.052505,95214.0,95213.0,0.01057962]
[1733223047803,0.052505,95214.0,95213.0,7.962e-05]
[1733223049094,0.053505,95214.0,95213.0,7.962e-05]
[1733223049994,0.001,95214.0,95213.0,7.962e-05]
[1733223050196,0.001,95214.0,95213.0,0.05258462]
[1733223050704,0.0131,95217.0,95209.0,0.13048]
[1733223050705,0.052504,95216.0,95209.0,0.13048]
[1733223050896,0.3608,95210.0,95209.0,0.13048]
[1733223051697,0.3608,95210.0,95206.0,0.12679097]
[1733223051698,0.413307,95210.0,95206.0,0.25727097]
[1733223051910,0.3608,95210.0,95206.0,0.25727097]
[1733223052106,0.052508,95208.0,95206.0,0.25727097]
[1733223052303,0.3618,95210.0,95206.0,0.25727097]
[1733223052505,0.053507,95210.0,95208.0,0.37586725]
[1733223052803,0.02986059,95210.0,95209.0,0.53268784]
[1733223053002,0.02986059,95210.0,95209.0,0.48017984]
[1733223054203,0.39066059,95210.0,95209.0,0.85523444]
[1733223054503,0.39066059,95210.0,95209.0,0.48017984]
[1733223054694,0.39074418,95210.0,95209.0,0.48017984]
[1733223054895,0.39074418,95210.0,95209.0,0.001]
[1733223055393,0.54743457,95210.0,95209.0,0.001]
[1733223055599,0.54743457,95210.0,95209.0,0.18890543]
[1733223055998,0.05151,95205.0,95204.0,0.25040175]
[1733223056193,0.05251,95204.0,95203.0,0.25040175]
[1733223056400,0.052514,95198.0,95197.0,0.31299518]
[1733223056597,0.3608,95198.0,95197.0,0.31336177]
[1733223056797,0.3608,95198.0,95195.0,0.31343969]
[1733223057005,0.052515,95196.0,95195.0,0.31343969]
[1733223057407,0.19254734,95198.0,95195.0,0.31343022]
[1733223057706,0.19254734,95198.0,95195.0,0.25076239]
[1733223058005,0.052515,95196.0,95195.0,7.792e-05]
[1733223058198,0.182995,95196.0,95195.0,7.792e-05]
[1733223058507,0.183995,95196.0,95195.0,0.25078582]
[1733223058701,0.183995,95196.0,95195.0,7.792e-05]
[1733223058910,0.182995,95196.0,95195.0,0.25079325]
[1733223059105,0.182995,95196.0,95195.0,7.792e-05]
[1733223059603,0.184035,95196.0,95195.0,7.792e-05]
[1733223059808,0.053515,95196.0,95195.0,7.792e-05]
[1733223060010,0.001,95196.0,95195.0,7.792e-05]
[1733223060309,0.0131,95203.0,95202.0,0.052512]
[1733223060608,0.0131,95203.0,95202.0,0.413312]
[1733223060906,0.0131,95203.0,95202.0,0.6640779]
[1733223061304,0.0131,95203.0,95202.0,0.413312]
[1733223061611,0.0141,95203.0,95202.0,0.413312]
[1733223061806,0.0105,95207.0,95202.0,0.6608]
[1733223062007,0.3608,95237.0,95203.0,0.7472885]
[1733223062206,0.13052,95228.0,95220.0,0.31338427]
[1733223062408,0.13052,95229.0,95222.0,0.31344761]
[1733223062600,0.13052,95228.0,95227.0,0.25075923]
[1733223062805,0.052498,95226.0,95224.0,0.25075923]
[1733223063111,0.13063369,95225.0,95219.0,0.25075923]
[1733223063411,0.13063369,95225.0,95212.0,0.31344761]
[1733223063412,0.052505,95213.0,95212.0,0.31344761]
[1733223064110,0.052503,95218.0,95215.0,0.052504]
[1733223064316,0.052504,95216.0,95215.0,0.3608]
[1733223064505,0.052502,95220.0,95215.0,0.3608]
[1733223064811,0.052502,95220.0,95215.0,0.67424761]
[1733223065122,0.052504,95216.0,95215.0,0.3608]
[1733223065313,0.052504,95216.0,95215.0,0.413304]
[1733223065712,0.0525,95224.0,95210.0,0.052507]